bitfinex-derivatives/quotes_ETHF0:USTF0_20251008
["timestamp","ask_amount","ask_price","bid_price","bid_amount"]
[1759941246978,1.00707,4467.5,4467.2,0.3344]
[1759941247279,0.62783,4467.4,4467.3,0.7825]
[1759941247673,0.70883,4467.4,4467.3,0.7825]
[1759941247874,0.00235452,4467.6,4467.5,0.5804]
[1759941248080,0.63017452,4467.6,4467.5,0.9148]
[1759941248780,0.00235452,4467.6,4467.5,0.9148]
[1759941248977,0.22735452,4467.6,4467.5,0.9148]
[1759941249184,0.30655452,4467.6,4467.5,0.9148]
[1759941249681,0.04195452,4467.6,4467.5,0.9148]
[1759941249983,0.26695452,4467.6,4467.5,0.9148]
[1759941251387,0.30655452,4467.6,4467.5,0.9148]
[1759941252089,0.33135452,4467.6,4467.5,0.4667]
[1759941252384,0.40283,4467.4,4467.3,0.3143]
[1759941252583,0.48203,4467.4,4467.3,0.5268]
[1759941252981,0.48203,4467.4,4467.3,0.3143]
[1759941253191,1.23442452,4467.6,4467.1,0.3143]
[1759941253192,0.50685,4467.2,4467.1,0.3143]
[1759941253376,0.73185,4467.2,4467.1,0.3143]
[1759941253689,0.40295,4466.1,4466.0,0.3448]
[1759941253989,0.70715,4466.1,4466.0,0.3448]
[1759941254179,0.70715,4466.1,4466.0,0.6591]
[1759941254378,0.70715,4466.1,4466.0,0.8797]
[1759941254379,0.66755,4466.1,4466.0,0.8797]
[1759941254579,0.0396,4466.6,4466.5,0.3379]
[1759941254777,0.70711,4466.6,4466.5,0.5585]
[1759941254979,0.48211,4466.6,4466.5,0.1254]
[1759941255177,0.48215,4466.1,4466.0,0.6591]
[1759941255584,0.62795,4466.1,4466.0,0.8797]
[1759941255791,0.66755,4466.1,4466.0,0.8797]
[1759941256390,0.44255,4466.1,4466.0,0.8797]
[1759941256590,0.66755,4466.1,4466.0,0.8797]
[1759941256786,0.73195,4466.1,4466.0,0.4466]
[1759941257795,0.4848,4465.6,4465.5,0.6673]
[1759941257991,0.7098,4465.6,4465.5,0.6673]
[1759941258895,0.7098,4465.6,4464.0,0.3549]
[1759941258896,0.1265,4465.5,4463.2,3.2078]
[1759941259189,0.1265,4465.5,4457.9,8.86543234]
[1759941259190,0.82265,4462.8,4462.7,0.4346]
[1759941259393,1.38605,4462.8,4462.7,0.4346]
[1759941259589,1.04765,4462.8,4462.7,0.4346]
[1759941259788,0.82265,4462.8,4462.7,0.4346]
[1759941259989,0.22763235,4462.8,4462.7,5.43736206]
[1759941260285,3.2078,4464.1,4463.6,0.4346]
[1759941260493,3.61093,4464.1,4464.0,0.5645]
[1759941260691,4.04873,4464.1,4464.0,0.5645]
[1759941260894,4.04873,4464.1,4464.0,0.8809]
[1759941261296,4.05032772,4464.1,4464.0,0.8809]
[1759941261597,3.82532772,4464.1,4464.0,0.8809]
[1759941262092,3.82532772,4464.1,4463.5,0.8809]
[1759941262093,0.61598,4463.6,4463.5,0.8809]
[1759941262396,0.225,4463.6,4463.5,0.8809]
[1759941262591,0.4378,4463.6,4463.5,0.8809]
[1759941262798,0.9828,4463.6,4463.5,0.8809]
[1759941262998,0.9828,4463.6,4463.5,0.751]
[1759941263200,0.6444,4463.6,4463.5,0.8809]
[1759941263400,0.4378,4463.6,4463.5,0.8809]
[1759941263696,4.1906,4463.6,4463.5,0.8809]
[1759941263896,0.82265,4462.8,4462.7,0.22826206]
[1759941264198,1.38605,4462.8,4462.7,0.22826206]
[1759941264403,1.38605,4462.8,4462.7,0.00276206]
[1759941264597,1.38605,4462.8,4462.7,0.22826206]
[1759941264798,0.62825,4462.8,4462.7,0.75376206]
[1759941265097,0.84105,4462.8,4462.7,0.75376206]
[1759941265500,0.61605,4462.8,4462.7,0.75376206]
[1759941265702,0.225,4462.8,4462.7,0.43736206]
[1759941265898,0.225,4462.8,4462.7,0.75376206]
[1759941266201,0.9828,4462.8,4462.7,0.54466206]
[1759941266701,0.7578,4462.8,4462.7,0.54466206]
[1759941266902,0.9828,4462.8,4462.7,0.54466206]
[1759941267099,0.9828,4462.8,4462.7,0.00276206]
[1759941267100,4.1906,4462.8,4462.7,0.00276206]
[1759941268500,3.9656,4462.8,4462.7,0.54466206]
[1759941268802,0.6444,4462.8,4462.7,0.75376206]
[1759941269104,0.9828,4462.8,4462.7,0.54466206]
[1759941269703,0.7578,4462.8,4462.7,0.54466206]
[1759941269898,0.9828,4462.8,4462.7,0.54466206]
[1759941271107,0.7578,4462.8,4462.7,0.54466206]
[1759941271310,0.9828,4462.8,4462.7,0.54466206]
[1759941271605,0.9828,4462.8,4462.7,0.00276206]
[1759941271998,0.9828,4462.8,4462.7,0.54466206]
[1759941272199,0.4378,4462.8,4462.7,0.75376206]
[1759941272599,4.1906,4462.8,4462.7,0.00276206]
[1759941274206,3.9656,4462.8,4462.7,0.00276206]
[1759941274605,4.1906,4462.8,4462.7,0.00276206]
[1759941275608,4.59385,4462.8,4462.7,0.00276206]
[1759941275804,0.40336,4461.6,4461.3,0.40338]
[1759941276010,0.84116,4461.6,4461.5,0.8809]
[1759941276506,0.4378,4461.6,4461.5,1.28427]
[1759941276806,0.84116,4461.6,4461.5,1.2871778]
[1759941277206,0.4378,4461.6,4461.5,1.2871778]
[1759941277409,0.84116,4461.6,4461.5,1.2871778]
[1759941278498,0.84116,4461.6,4461.5,0.8838078]
[1759941279211,1.36246,4461.6,4461.5,0.7539078]
[1759941279411,1.36246,4461.6,4461.5,0.0029078]
[1759941282009,1.04776,4461.6,4461.5,0.9088078]
[1759941282409,1.36246,4461.6,4461.5,0.5574078]
[1759941284610,3.61115,4461.7,4461.5,0.9088078]
[1759941284814,3.61115,4461.7,4461.6,0.5545]
[1759941285020,4.57595,4461.7,4461.6,0.5545]
[1759941285916,0.3147,4461.6,4461.5,0.0029078]
[1759941286123,1.14316,4461.6,4461.5,0.0029078]
[1759941286324,1.14316,4461.6,4461.5,0.2313078]
[1759941286523,1.14316,4461.6,4461.5,0.5574078]
[1759941286724,1.14316,4461.6,4461.5,0.0029078]
[1759941296626,0.40336,4461.6,4461.5,0.9088078]
[1759941296826,0.62836,4461.6,4461.5,0.9088078]
[1759941297028,0.83526,4461.6,4461.5,0.9088078]
[1759941297327,1.05346,4461.6,4461.5,0.9088078]
[1759941297930,0.83526,4461.6,4461.5,0.9088078]
[1759941298233,1.05346,4461.6,4461.5,0.9088078]
[1759941298631,0.82846,4461.6,4461.5,0.9088078]
[1759941298831,1.05346,4461.6,4461.5,0.9088078]
[1759941299027,3.2078,4461.7,4461.5,5.5827078]
[1759941299227,4.03613,4463.0,4462.9,0.7759]
[1759941299433,0.40327,4462.6,4462.5,0.13]
[1759941299635,0.83517,4462.6,4462.5,0.9059]
[1759941299835,0.4319,4462.6,4462.5,0.9059]
[1759941300336,0.9648,4462.6,4462.5,0.9059]
[1759941301533,0.9648,4462.6,4462.5,0.7759]
[1759941301739,0.82841,4462.1,4462.0,0.9059]
[1759941301935,1.05341,4462.1,4462.0,0.9059]
[1759941302131,3.2078,4463.0,4462.4,0.7759]
[1759941302438,0.2069,4463.0,4462.9,0.7759]
[1759941302634,3.81789,4463.5,4463.4,0.7759]
[1759941303040,4.04289,4463.5,4463.4,0.7759]
[1759941303436,0.40322,4463.1,4463.0,0.13]
[1759941303644,1.36802,4463.1,4463.0,0.5545]
[1759941303842,1.05332,4463.1,4463.0,0.9059]
[1759941305330,1.14306,4462.7,4462.6,0.3261]
[1759941305535,0.8284,4462.2,4462.1,0.7759]
[1759941305735,1.0534,4462.2,4462.1,0.7759]
[1759941306338,0.4319,4462.2,4462.1,0.7759]
[1759941306536,0.4033,4462.3,4462.1,0.7759]
[1759941306738,3.2078,4463.2,4463.1,0.7759]
[1759941307039,3.2078,4463.2,4462.6,0.4498]
[1759941307040,0.2069,4462.7,4462.6,0.4498]
[1759941307242,0.83516,4462.7,4462.6,0.7759]
[1759941307436,1.05336,4462.7,4462.6,0.7759]
[1759941307840,1.05336,4462.7,4462.5,0.13]
[1759941307841,0.9648,4462.7,4462.2,3.2078]
[1759941308036,0.9648,4462.7,4461.5,0.1329078]
[1759941308037,0.40335,4461.8,4461.7,0.7759]
[1759941308238,0.83525,4461.8,4461.7,0.7759]
[1759941308840,0.83525,4461.8,4461.7,1.17925]
[1759941309138,1.323,4463.0,4462.5,0.3518]
[1759941309338,3.2078,4463.1,4462.9,0.40324]
[1759941309536,3.2078,4463.6,4463.5,0.8928]
[1759941309737,3.4328,4463.6,4463.5,0.8928]
[1759941312237,3.2078,4463.6,4463.5,0.8928]
[1759941312542,3.4328,4463.6,4463.5,0.8928]
[1759941317239,3.2078,4463.6,4463.5,5.8928]
[1759941317445,0.00159772,4464.1,4464.0,1.29594]
[1759941317942,0.22659772,4464.1,4464.0,2.51357282]
[1759941319945,0.00159772,4464.1,4464.0,1.29594]
[1759941320245,0.22659772,4464.1,4464.0,1.29594]
[1759941321037,0.00159772,4464.1,4464.0,1.29594]
[1759941321241,0.22659772,4464.1,4464.0,1.29594]
[1759941322446,0.00159772,4464.1,4464.0,1.29594]
[1759941322638,0.22659772,4464.1,4464.0,1.29594]
[1759941323643,0.96319772,4464.1,4464.0,0.7611]
[1759941324247,0.64829772,4464.1,4464.0,0.8928]
[1759941324442,0.22659772,4464.1,4464.0,0.8928]
[1759941325046,0.22659772,4464.1,4464.0,1.29594]
[1759941325347,0.62972772,4464.1,4464.0,1.29594]
[1759941326154,1.36632772,4464.1,4464.0,0.541]
[1759941326455,1.36632772,4464.1,4464.0,0.94414]
[1759941326750,1.36632772,4464.1,4464.0,0.8928]
[1759941328457,1.36632772,4464.1,4464.0,0.541]
[1759941328757,1.36632772,4464.1,4464.0,0.94414]
[1759941328945,1.36632772,4464.1,4464.0,1.16424]
[1759941329150,0.62972772,4464.1,4464.0,1.29594]
[1759941329757,0.84382772,4464.1,4464.0,1.29594]
[1759941331157,0.61882772,4464.1,4464.0,1.29594]
[1759941331357,0.84382772,4464.1,4464.0,1.29594]
[1759941331757,0.61882772,4464.1,4464.0,1.29594]
[1759941332056,0.84382772,4464.1,4464.0,1.29594]
[1759941332256,1.36632772,4464.1,4464.0,0.7611]
[1759941332953,1.13978,4463.6,4463.5,0.3338]
[1759941333152,1.36478,4463.6,4463.5,0.541]
[1759941333459,1.36478,4463.6,4463.5,0.8928]
[1759941333659,1.04988,4463.6,4463.5,0.8928]
[1759941334252,1.04988,4463.6,4463.5,1.29599]
[1759941334253,0.84228,4463.6,4463.5,1.29599]
[1759941334453,0.62818,4463.6,4463.5,0.96219]
[1759941335057,0.62818,4463.6,4463.5,1.29599]
[1759941336363,0.225,4463.6,4463.5,1.29599]
[1759941336750,0.40472772,4464.1,4464.0,0.40314]
[1759941336951,0.00159772,4464.1,4464.0,1.29594]
[1759941337258,0.22659772,4464.1,4464.0,1.29594]
[1759941339162,0.43309772,4464.1,4464.0,1.29594]
[1759941339461,0.43319772,4464.1,4464.0,1.29594]
[1759941339663,0.65819772,4464.1,4464.0,1.29594]
[1759941339857,0.43309772,4464.1,4464.0,1.29594]
[1759941340459,1.39432772,4464.1,4464.0,0.8928]
[1759941340661,1.39432772,4464.1,4464.0,1.16424]
[1759941340957,1.16932772,4464.1,4464.0,1.16424]
[1759941341162,1.39432772,4464.1,4464.0,1.16424]
[1759941341362,1.39432772,4464.1,4464.0,1.30084]
[1759941341865,0.83622772,4464.1,4464.0,1.30084]
[1759941342261,1.06132772,4464.1,4464.0,1.30084]
[1759941342462,0.43309772,4464.1,4464.0,1.30084]
[1759941343361,0.22659772,4464.1,4464.0,1.30084]
[1759941343861,0.43309772,4464.1,4464.0,1.30084]
[1759941344060,1.06132772,4464.1,4464.0,1.30084]
[1759941344259,1.39432772,4464.1,4464.0,1.30084]
[1759941345165,0.61122772,4464.1,4464.0,1.30084]
[1759941345365,0.83622772,4464.1,4464.0,1.30084]
[1759941347866,1.06132772,4464.1,4464.0,1.30084]
[1759941348168,0.83632772,4464.1,4464.0,1.30084]
[1759941348364,1.06132772,4464.1,4464.0,1.30084]
[1759941348963,0.83632772,4464.1,4464.0,1.30084]
[1759941349165,1.06132772,4464.1,4464.0,1.30084]
[1759941352168,0.22659772,4464.1,4464.0,1.30084]
[1759941352670,0.00159772,4464.1,4464.0,1.30084]
[1759941352968,0.22659772,4464.1,4464.0,1.30084]
[1759941353367,0.00159772,4464.1,4464.0,1.30084]
[1759941353566,0.43309772,4464.1,4464.0,1.30084]
[1759941353871,2.61225242,4464.1,4464.0,0.541]
[1759941354064,2.61225242,4464.1,4463.5,1.73530345]
[1759941354065,1.77752242,4464.1,4463.7,0.2184]
[1759941354267,0.4316,4463.8,4463.7,0.548]
[1759941354465,1.16776,4463.8,4463.7,0.95117]
[1759941354869,1.16776,4463.8,4463.7,1.17047]
[1759941355070,0.83476,4463.8,4463.7,1.17047]
[1759941355468,1.16776,4463.8,4463.7,1.17047]
[1759941356672,1.16776,4463.8,4463.7,0.7673]
[1759941357065,0.40318,4463.6,4463.5,1.2179247]
[1759941357266,1.39278,4463.6,4463.5,0.548]
[1759941357668,1.39278,4463.6,4463.5,0.7673]
[1759941357961,1.05978,4463.6,4463.5,1.30709]
[1759941358568,1.05978,4463.6,4463.5,0.9039]
[1759941358772,0.83478,4463.6,4463.5,0.9039]
[1759941358972,1.05978,4463.6,4463.5,1.30709]
[1759941359665,1.39278,4463.6,4463.5,0.9039]
[1759941359871,1.39278,4463.6,4463.5,0.7673]
[1759941360067,1.39278,4463.6,4462.9,1.00809]
[1759941360068,1.16783,4463.0,4462.9,1.60360345]
[1759941360266,1.16783,4463.0,4462.0,1.74020345]
[1759941360267,0.333,4462.3,4462.0,1.74020345]
[1759941360572,0.7646,4462.1,4462.0,0.2184]
[1759941360775,1.16796,4461.6,4461.5,0.5509078]
[1759941360968,2.6108847,4461.6,4461.5,0.0029078]
[1759941361972,0.4316,4461.6,4461.5,0.7702078]
[1759941362169,0.9896,4461.6,4461.5,0.9068078]
[1759941362570,0.9896,4461.6,4461.5,0.7702078]
[1759941362878,3.2078,4461.7,4461.5,1.3101778]
[1759941363081,35.56881,4462.1,4462.0,0.9039]
[1759941363273,0.4033,4462.3,4462.2,0.4377]
[1759941363476,0.8348,4462.3,4462.2,0.7673]
[1759941364567,0.40329,4462.4,4462.2,0.7673]
[1759941364773,0.4315,4462.3,4462.2,0.4377]
[1759941364980,0.4316,4462.1,4462.0,0.355]
[1759941365280,0.4316,4462.1,4462.0,0.6846]
[1759941365479,0.6566,4462.1,4462.0,0.6846]
[1759941366279,0.6566,4462.1,4462.0,0.9039]
[1759941366973,0.73631,4462.2,4462.1,0.40331]
[1759941366974,0.40331,4462.2,4462.1,0.40331]
[1759941367178,0.6098,4462.3,4462.2,0.7673]
[1759941367375,0.8348,4462.3,4462.2,0.7673]
[1759941368079,1.16796,4461.6,4461.5,0.0029078]
[1759941368280,4.60076,4461.6,4461.5,0.0029078]
[1759941368480,1.17241,4461.0,4460.9,0.548]
[1759941368683,1.39741,4461.0,4460.9,0.548]
[1759941369279,1.08491,4461.0,4460.9,0.7748]
[1759941369480,0.4565,4461.0,4460.9,0.7767555]
[1759941369979,0.6815,4461.0,4460.9,0.7767555]
[1759941370677,0.994,4461.0,4460.9,0.5499555]
[1759941371176,0.994,4461.0,4460.9,0.0019555]
[1759941371579,4.328,4461.0,4460.9,0.0019555]
[1759941373184,9.328,4461.0,4460.9,0.0019555]
[1759941373884,1.17248,4460.2,4460.1,0.3405]
[1759941374085,1.39748,4460.2,4460.1,0.559]
[1759941374683,1.39910794,4460.2,4460.1,0.5614749]
[1759941377486,1.39910794,4460.2,4460.1,0.7882749]
[1759941377885,1.39910794,4460.2,4460.1,0.0024749]
[1759941378786,1.39910794,4460.2,4460.1,0.5614749]
[1759941379097,1.39910794,4460.2,4460.1,0.0024749]
[1759941381096,1.39910794,4460.2,4460.1,0.7882749]
[1759941381097,0.00162794,4460.2,4460.1,0.7882749]
[1759941381396,0.22662794,4460.2,4460.1,0.7882749]
[1759941382095,0.00162794,4460.2,4460.1,0.7882749]
[1759941382293,0.22662794,4460.2,4460.1,0.7882749]
[1759941383091,1.00851,4461.2,4460.1,0.7882749]
[1759941383092,0.8598,4462.2,4462.1,0.7858]
[1759941383288,0.994,4462.2,4462.1,0.7858]
[1759941383494,0.2284,4462.7,4462.6,0.4453]
[1759941383798,0.4534,4462.7,4462.6,0.7858]
[1759941383992,0.23024833,4462.7,4462.6,0.7858]
[1759941384294,0.45524833,4462.7,4462.6,0.7858]
[1759941384686,0.23024833,4462.7,4462.6,0.7858]
[1759941384887,0.45524833,4462.7,4462.6,0.7858]
[1759941385083,0.99584833,4462.7,4462.6,0.7858]
[1759941385286,0.40331,4462.2,4462.0,0.1263]
[1759941385597,0.4565,4461.9,4461.8,0.559]
[1759941385787,0.4565,4461.9,4461.8,0.7858]
[1759941385990,0.2284,4461.9,4461.8,0.7858]
[1759941386796,0.4565,4461.9,4461.8,0.7858]
[1759941387691,0.2284,4461.9,4461.8,0.7858]
[1759941387991,0.4534,4462.1,4462.0,0.5716]
[1759941388194,0.4534,4462.1,4462.0,0.9121]
[1759941389295,3.2078,4463.6,4462.6,0.7858]
[1759941389496,0.68334833,4462.7,4462.6,0.7858]
[1759941390393,0.99584833,4462.7,4462.6,0.7858]
[1759941391291,1.39910833,4462.7,4462.0,0.1263]
[1759941391489,1.08660833,4462.7,4462.6,0.2185]
[1759941391692,1.39910833,4462.7,4462.6,0.559]
[1759941391993,1.08660833,4462.7,4462.6,0.7858]
[1759941392193,0.68334833,4462.7,4462.6,0.7858]
[1759941392389,0.40316,4463.8,4463.6,0.3405]
[1759941392593,0.85968,4463.6,4463.5,0.6853]
[1759941392992,0.4565,4463.6,4463.5,0.6853]
[1759941393192,0.4565,4463.6,4463.5,0.9121]
[1759941393393,0.45816216,4463.6,4463.5,0.91432659]
[1759941393602,0.77066216,4463.6,4463.5,0.56122659]
[1759941395689,0.22666216,4463.6,4463.5,0.91432659]
[1759941396697,0.00166216,4463.6,4463.5,0.91432659]
[1759941396887,0.22666216,4463.6,4463.5,0.91432659]
[1759941397086,0.00166216,4463.6,4463.5,0.91432659]
[1759941397496,0.22666216,4463.6,4463.5,0.91432659]
[1759941398199,0.00166216,4463.6,4463.5,5.91432659]
[1759941398395,0.22666216,4463.6,4463.5,5.91432659]
[1759941399104,0.44586216,4463.6,4463.5,0.91432659]
[1759941399500,0.22666216,4463.6,4463.5,0.91432659]
[1759941403102,0.00166216,4463.6,4463.5,0.91432659]
[1759941403296,0.22666216,4463.6,4463.5,0.91432659]
[1759941403498,0.44586216,4463.6,4463.5,0.91432659]
[1759941403903,1.00056216,4463.6,4463.5,0.56122659]
[1759941404198,0.66526216,4463.6,4463.5,0.91292659]
[1759941404400,0.22666216,4463.6,4463.5,0.91292659]
[1759941406102,0.40484216,4463.6,4463.5,0.91292659]
[1759941406302,0.62984216,4463.6,4463.5,0.91292659]
[1759941407499,0.40484216,4463.6,4463.5,0.91292659]
[1759941407697,0.62984216,4463.6,4463.5,0.91292659]
[1759941408401,0.62984216,4463.6,4463.5,1.31610659]
[1759941409202,0.84904216,4463.6,4463.5,1.31610659]
[1759941412304,1.06844216,4463.6,4463.5,1.31610659]
[1759941412504,1.40374216,4463.6,4463.5,1.31610659]
[1759941413096,1.06844216,4463.6,4463.5,1.31610659]
[1759941413998,1.40374216,4463.6,4463.5,0.00222659]
[1759941414203,6.40374216,4463.6,4463.5,0.00222659]
[1759941414404,6.40374216,4463.6,4463.0,0.3386]
[1759941414405,1.17712,4463.1,4463.0,0.3386]
[1759941414603,0.62247,4462.7,4462.6,1.19257]
[1759941414805,0.84747,4462.7,4462.6,1.19257]
[1759941415000,0.84188,4462.4,4462.3,0.3386]
[1759941415300,0.40327,4462.6,4462.1,0.3386]
[1759941415301,1.1772,4462.2,4462.1,0.3386]
[1759941415504,1.4022,4462.2,4462.1,0.56770912]
[1759941416601,1.4022,4462.2,4462.1,0.79140912]
[1759941416807,1.0669,4462.2,4462.1,0.79140912]
[1759941416995,0.8475,4462.2,4462.1,0.79140912]
[1759941417396,1.0669,4462.2,4462.1,0.79140912]
[1759941418200,0.8475,4462.2,4462.1,0.79140912]
[1759941419010,1.0669,4462.2,4462.1,0.79140912]
[1759941419902,1.4022,4462.2,4462.1,0.79140912]
[1759941420608,1.4022,4462.2,4462.1,0.00210912]
[1759941421103,1.4022,4462.2,4462.1,0.79140912]
[1759941422604,1.4022,4462.2,4462.1,0.56770912]
[1759941422804,1.4022,4462.2,4462.1,0.00210912]
[1759941423202,1.4022,4462.2,4462.1,0.56770912]
[1759941423399,0.40329,4462.3,4462.2,0.3386]
[1759941423611,3.2078,4463.5,4463.0,0.4666]
[1759941423810,3.83019,4463.5,4463.4,0.7893]
[1759941424104,4.05519,4463.5,4463.4,0.7893]
[1759941424310,3.2078,4463.5,4463.4,0.7893]
[1759941424510,3.4328,4463.5,4463.4,0.7893]
[1759941425108,3.2078,4464.0,4463.5,1.32048]
[1759941425311,0.22666216,4463.6,4463.5,1.49997266]
[1759941425608,3.2078,4464.5,4464.4,1.1924]
[1759941426007,3.4328,4464.5,4464.4,1.1924]
[1759941426203,0.7739,4465.8,4465.7,0.227]
[1759941426406,1.06658,4465.8,4465.7,0.7893]
[1759941426711,1.40367924,4465.8,4465.7,0.79212254]
[1759941426906,6.40367924,4465.8,4465.7,0.00282254]
[1759941427212,1.40367924,4465.8,4465.7,0.00282254]
[1759941428414,6.40367924,4465.8,4465.7,0.00282254]
[1759941428810,1.18378,4464.7,4464.6,0.332]
[1759941429010,1.40878,4464.7,4464.6,0.332]
[1759941429414,1.40878,4464.7,4464.6,0.551]
[1759941429914,1.40878,4464.7,4464.6,0.55291325]
[1759941430111,1.40878,4464.7,4464.6,0.00191325]
[1759941430310,1.06988,4464.7,4464.6,0.77881325]
[1759941430515,0.40308,4464.7,4464.6,0.77881325]
[1759941430715,0.62808,4464.7,4464.6,0.77881325]
[1759941431313,0.2224,4465.3,4465.0,0.1271]
[1759941431619,0.40305,4465.1,4465.0,0.904]
[1759941432112,0.62545,4465.1,4465.0,0.904]
[1759941432620,0.40305,4465.1,4465.0,0.904]
[1759941432822,0.62805,4465.1,4465.0,0.904]
[1759941433709,0.85045,4465.1,4465.0,0.904]
[1759941434214,1.06985,4465.1,4465.0,0.904]
[1759941434408,0.84485,4465.1,4465.0,0.904]
[1759941434610,1.40875,4465.1,4465.0,0.904]
[1759941435517,1.18375,4465.1,4465.0,0.332]
[1759941435915,1.40875,4465.1,4465.0,0.904]
[1759941436117,1.06985,4465.1,4465.0,0.904]
[1759941436519,0.84485,4465.1,4465.0,0.904]
[1759941436720,1.40875,4465.1,4465.0,0.904]
[1759941437221,1.06985,4465.1,4465.0,0.904]
[1759941437622,0.62544,4465.1,4465.0,0.904]
[1759941437916,0.85044,4465.1,4465.0,0.904]
[1759941438111,0.7807,4464.7,4464.6,0.77881325]
[1759941438317,0.4474,4464.7,4464.6,0.77881325]
[1759941438917,0.2224,4465.6,4465.5,0.4591]
[1759941439123,0.4474,4465.6,4465.5,0.904]
[1759941439318,0.225,4465.6,4465.5,0.904]
[1759941440226,0.62539,4465.7,4465.6,0.7769]
[1759941440427,0.85039,4465.7,4465.6,0.7769]
[1759941442024,1.40869,4465.7,4465.6,0.7769]
[1759941442227,1.18369,4465.7,4465.6,0.7769]
[1759941442427,0.62542,4465.3,4465.2,3.9847]
[1759941442630,0.85042,4465.3,4465.2,3.9847]
[1759941443129,6.34442235,4466.4,4465.2,3.9847]
[1759941443130,35.2879,4466.3,4465.7,0.7769]
[1759941443426,0.22679924,4465.8,4465.7,3.9847]
[1759941443828,0.40477924,4465.8,4465.7,4.38769]
[1759941444032,0.62977924,4465.8,4465.7,4.38769]
[1759941444532,0.62977924,4465.8,4465.7,3.9847]
[1759941444732,0.40477924,4465.8,4465.7,3.9847]
[1759941444927,0.62977924,4465.8,4465.7,3.9847]
[1759941445427,1.18547924,4465.8,4465.7,3.2078]
[1759941445728,1.18372,4465.3,4465.2,3.2078]
[1759941445923,1.40872,4465.3,4465.2,3.2078]
[1759941448821,0.2224,4464.9,4464.8,0.4449]
[1759941449025,0.85046,4464.9,4464.8,0.4449]
[1759941449325,0.85046,4464.9,4464.8,0.7769]
[1759941450135,1.40876,4464.9,4464.8,0.7769]
[1759941450333,1.40876,4464.9,4464.8,0.551]
[1759941453432,1.40876,4464.9,4464.7,3.2078]
[1759941453433,0.40307,4464.8,4464.7,3.2078]
[1759941453740,1.18377,4464.8,4464.7,3.7588]
[1759941454033,1.18377,4464.8,4464.7,3.9847]
[1759941455428,1.18377,4464.8,4464.7,4.38778]
[1759941455628,1.18377,4464.8,4464.7,3.9847]
[1759941456230,1.18377,4464.8,4464.7,3.2078]
[1759941456636,1.18377,4464.8,4464.7,3.7588]
[1759941457229,1.18377,4464.8,4464.7,3.9847]
[1759941457426,0.84487,4464.8,4464.7,3.9847]
[1759941457838,1.17037,4464.8,4464.7,3.9847]
[1759941460733,1.17037,4464.8,4464.6,0.40499325]
[1759941460734,1.16208,4464.7,4464.6,0.00191325]
[1759941460936,1.16208,4464.7,4463.2,3.2078]
[1759941460937,0.3298,4463.3,4463.2,3.2078]
[1759941461238,1.16225,4462.8,4462.7,3.7502]
[1759941461440,1.38725,4462.8,4462.7,0.5424]
[1759941461830,0.4292,4462.3,4462.2,3.4329]
[1759941462040,0.98603158,4462.3,4462.2,3.43557363]
[1759941462239,0.98603158,4462.3,4462.2,3.65307363]
[1759941462440,0.65623158,4462.3,4462.2,3.97037363]
[1759941463033,0.98603158,4462.3,4462.2,3.97037363]
[1759941463429,0.65623158,4462.3,4462.2,3.97037363]
[1759941464838,0.44503158,4462.3,4462.2,3.97037363]
[1759941465040,0.00203158,4462.3,4462.2,3.97037363]
[1759941465338,0.40319,4463.4,4463.1,0.7599]
[1759941465645,0.40319,4463.4,4463.0,0.1249]
[1759941465646,0.218,4463.6,4463.5,0.6597]
[1759941465937,1.16212,4464.2,4464.1,0.5424]
[1759941466130,1.38964722,4464.2,4464.1,0.5424]
[1759941466335,0.62117,4463.6,4463.5,0.8848]
[1759941466531,0.443,4463.6,4463.5,0.8848]
[1759941466840,0.225,4463.6,4463.5,0.8848]
[1759941467732,0.62116,4463.7,4463.6,0.5424]
[1759941467936,0.84616,4463.7,4463.6,0.7599]
[1759941468242,1.16216,4463.7,4463.6,0.7599]
[1759941468436,1.1622,4463.3,4463.2,3.2078]
[1759941469040,1.1622,4463.3,4463.2,3.7502]
[1759941470339,0.5478,4463.9,4463.8,0.2251]
[1759941470540,0.984,4463.9,4463.8,0.5424]
[1759941471045,0.83237,4463.6,4463.5,0.6673]
[1759941471748,1.05737,4463.6,4463.5,0.6673]
[1759941472042,1.05737,4463.6,4463.5,0.7599]
[1759941472242,0.8324,4463.3,4463.2,3.4329]
[1759941472445,0.8324,4463.3,4463.2,3.6504]
[1759941472844,0.8324,4463.3,4463.2,3.9677]
[1759941473843,0.6212,4463.3,4463.2,3.9677]
[1759941476153,35.0521,4464.0,4463.4,1.16309]
[1759941476154,0.3298,4464.0,4463.4,1.16309]
[1759941476358,1.16213,4464.0,4463.9,0.7599]
[1759941476556,1.38713,4464.0,4463.9,0.7599]
[1759941477648,1.38713,4464.0,4463.9,0.3173]
[1759941477852,1.38713,4464.0,4463.2,3.7502]
[1759941477853,0.8324,4463.3,4463.2,3.7502]
[1759941478053,1.0574,4463.3,4463.2,3.7502]
[1759941478252,1.0574,4463.3,4463.2,3.9677]
[1759941478452,1.3872,4463.3,4463.2,3.9677]
[1759941478854,1.3872,4463.3,4463.2,3.2078]
[1759941479660,1.3872,4463.3,4463.2,3.4329]
[1759941479858,1.3872,4463.3,4463.2,3.7502]
[1759941482161,1.16214,4463.9,4463.8,0.5424]
[1759941482368,0.00252722,4464.2,4464.1,1.16299]
[1759941482662,0.22752722,4464.2,4464.1,1.16299]
[1759941482852,0.00252722,4464.2,4464.1,6.16299]
[1759941483057,0.40302,4464.9,4464.8,0.7599]
[1759941483255,0.3298,4465.9,4465.1,0.7203]
[1759941483459,0.3298,4465.9,4465.8,0.7599]
[1759941483460,0.40293,4465.9,4465.8,0.7599]
[1759941483654,0.18320521,4466.2,4465.9,0.3173]
[1759941483856,0.84591,4466.1,4466.0,0.7599]
[1759941484064,0.218,4466.1,4466.0,0.8848]
[1759941484360,0.984,4466.1,4466.0,0.7599]